Cogmind - Beta 15 @@@ ROGUE MODE // 2025.08.01 @ 09:58:59 Player: beans Result: Destroyed by G-34 Mercenary with Small Laser Performance ------------- Evolutions (1) 500 Regions Visited (3) 600 Robots Destroyed (33) 165 Value Destroyed (776) 776 Prototype IDs (3) 60 Alien Tech Used (0) 0 Bonus (284) 284 TOTAL SCORE: 2385 Bonus ------- High Alert Combat Kills 57 Follower Combat Kills 227 Cogmind --------- Core Integrity 0/400 Matter 284/300 Energy 99/100 System Corruption 0% Temperature Warm (112) Movement Core (250) Ox4 Location -9/Materials Parts ------- > --- POWER (1) -------- (None) > --- PROPULSION (2) --- (None) > --- UTILITY (4) ------ Sensor Drone Bay (17/20) > --- WEAPON (2) ------- Light Assault Rifle > --- INVENTORY (5) ---- Light Nuclear Core Light Treads Peak State ------------ > --- POWER ------------ Ion Engine > --- PROPULSION ------- Aerolev Unit Aerolev Unit > --- UTILITY ---------- Compact Matter Pod Compact Matter Pod Compact Matter Pod Sensor Drone Bay > --- WEAPON ----------- Advanced Beam Cannon Heavy Assault Rifle > --- INVENTORY -------- Light Nuclear Core Light Treads Light Assault Rifle Light Assault Rifle Light Cannon [Rating: 31] Favorites ----------- Power Ion Engine Engine Ion Engine Propulsion Light Treads Treads Light Treads Hover Unit Aerolev Unit Utility Compact Matter Pod Device Sensor Drone Bay Storage Compact Matter Pod Weapon Light Assault Rifle Energy Cannon Advanced Beam Cannon Ballistic Gun Light Assault Rifle Ballistic Cannon Light Cannon Build | -11 -10 -10 -9 ------- Run | Yrd Mat Min Mat Slots Evolved 2 | . . . 2 Power . | . . . . Propulsion . | . . . . Utility 2 | . . . 2 Weapon . | . . . . Parts Attached 17 | 5 . 1 11 Power 1 | 1 . . . Engine 1 | 1 . . . Core . | . . . . Reactor . | . . . . Propulsion 5 | 2 . . 3 Treads 2 | 2 . . . Leg . | . . . . Wheel . | . . . . Hover 3 | . . . 3 Flight . | . . . . Utility 4 | . . 1 3 Device 1 | . . 1 . Storage 3 | . . . 3 Processor . | . . . . Hackware . | . . . . Protection . | . . . . Artifact . | . . . . Weapon 7 | 2 . . 5 Energy Gun . | . . . . Energy Cannon 1 | . . . 1 Ballistic Gun 5 | 2 . . 3 Ballistic Cannon 1 | . . . 1 Launcher . | . . . . Special Weapon . | . . . . Impact Weapon . | . . . . Slashing Weapon . | . . . . Piercing Weapon . | . . . . Special Melee Weapon . | . . . . Unidentified Prototypes 3 | . . 1 2 Parts Lost 12 | . . . 12 Power 1 | . . . 1 Propulsion 2 | . . . 2 Utility 3 | . . . 3 Weapon 6 | . . . 6 Highest Loss Streak 6 | . . . 6 To Critical Strikes 1 | . . . 1 Average Backups 2 | . 2 3 3 Power . | . . 1 1 Propulsion . | . . . . Utility . | . . . . Weapon 1 | . 1 2 1 Tool/Special . | . . . . Unused Backups 1 | . . . 1 Power 1 | . . . 1 Propulsion . | . . . . Utility . | . . . . Weapon . | . . . . Tool/Special . | . . . . Average Slot Usage (%) 74 | . 71 78 75 Engine 11 | . 14 14 9 Treads 16 | . 28 28 7 Hover 5 | . . . 10 Device 7 | . . 7 11 Storage 7 | . . . 14 Energy Cannon 2 | . . . 4 Ballistic Gun 20 | . 28 28 13 Ballistic Cannon 2 | . . . 3 Peak Build Rating 31 | 5 5 13 31 Average Rating 13 | 3 5 9 20 On Entrance 5 | . 5 5 13 Naked Turns . | . . . . Heaviest Build 28 | 7 7 21 28 Greatest Support 40 | 40 40 40 40 Greatest Overweight (x) 7 | . . . 7 Average Overweight (x) . | . . . 1 Largest Inventory Capacity 5 | 5 5 5 5 Average Capacity 5 | 5 5 5 5 Most Carried 5 | 4 3 4 5 Average Carried 2 | . 2 3 3 Final Capacity 5 | 5 5 5 5 Final Carried 3 | . 3 3 2 Class Distribution -------------------- 100% | Mutant Dominant Class ---------------- Mutant | -10/Materials Mutant | -10/Mines Mutant | -9/Materials Resources | -11 -10 -10 -9 ----------- Run | Yrd Mat Min Mat Matter Collected 1071 | 212 114 16 729 Remotely . | . . . . Salvage Created 993 | . 236 17 740 Parts 72 | . 23 . 49 Haulers Intercepted 1 | . . . 1 Recyclers Shooed 1 | . . . 1 Parts Field Recycled . | . . . . Retrieved Matter . | . . . . Parts Self-Destructed . | . . . . Prevented . | . . . . Kills | -11 -10 -10 -9 ------- Run | Yrd Mat Min Mat Combat Hostiles Destroyed 26 | . 8 1 17 Guns 16 | . 8 1 7 Cannons 10 | . . . 10 Classes Destroyed 9 | . 2 . 7 Worker 1 | . . . 1 Builder 1 | . . . 1 Tunneler 1 | . . . 1 Hauler 1 | . . . 1 Recycler 1 | . . . 1 Watcher 2 | . . . 2 Swarmer 10 | . 3 1 6 Grunt 13 | . 5 . 8 Sentry 3 | . . . 3 Best Kill Streak 7 | . 3 1 7 Combat Bots Only 6 | . 3 1 6 Max Kills in Single Turn 1 | . 1 1 1 Gunslinging . | . . . . Exploded . | . . . . Melee . | . . . . Uniques/NPCs Destroyed . | . . . . Combat | -11 -10 -10 -9 -------- Run | Yrd Mat Min Mat Hostile Shots Fired 250 | . 43 . 207 Missed 72 | . 14 . 58 Hits 178 | . 29 . 149 Projectile 178 | . 29 . 149 Critical Strikes 7 | . . . 7 Damage Taken 1947 | . 314 10 1623 Core 459 | . 57 . 402 Absorbed by Shields . | . . . . Core Remaining (%) 88 | 100 . 77 . Volleys Fired 127 | . 40 1 86 Largest 2 | . 2 2 2 Hottest 98 | . 40 40 98 Shots Fired 224 | . 80 2 142 Gun 148 | . 80 2 66 Cannon 76 | . . . 76 Launcher . | . . . . Special . | . . . . Kinetic 175 | . 80 2 93 Thermal 49 | . . . 49 Explosive . | . . . . Electromagnetic . | . . . . Robot Hit Streak 11 | . 11 1 8 Robot Miss Streak 4 | . 4 1 4 Penetration Max . | . . . . Secondary Targets 3 | . 2 1 . Max Gunslinging Chain 1 | . 1 1 . Shots Hit Robots 133 | . 52 1 80 Core Hits 59 | . 20 1 38 Critical Kills 2 | . 1 . 1 Critical Parts Destroyed . | . . . . Critical Strikes 2 | . 1 . 1 Destroy 2 | . 1 . 1 Melee Attacks . | . . . . Impact . | . . . . Slashing . | . . . . Piercing . | . . . . Sneak Attacks . | . . . . Combat Hostiles . | . . . . Follow-up Attacks . | . . . . Damage Inflicted 1771 | . 443 8 1320 Guns 874 | . 443 8 423 Cannons 897 | . . . 897 Explosions . | . . . . Melee . | . . . . Ramming . | . . . . Kinetic 1168 | . 443 8 717 Thermal 603 | . . . 603 Explosive . | . . . . Electromagnetic . | . . . . Impact . | . . . . Slashing . | . . . . Piercing . | . . . . Highest Corruption 2 | . 2 2 . Average Corruption 2 | . 2 2 . Corruption Purged . | . . . . Corruption Blocked . | . . . . Effects 2 | . . 2 . Message Errors 1 | . . 1 . Energy Discharges 1 | . . 1 . Overload Shots . | . . . . Overflow Damage 7 | . . . 7 Projectiles 7 | . . . 7 Explosions . | . . . . Melee . | . . . . Knockbacks 2 | . . . 2 Impact . | . . . . Kinetic 1 | . . . 1 Secondary 1 | . . . 1 Self-Inflicted Damage . | . . . . Shots . | . . . . Rammed . | . . . . Targets Rammed . | . . . . Kicked . | . . . . Crushed . | . . . . Highest Temperature 267 | . 18 . 267 Average Temperature 84 | . 8 . 93 Received Heat Transfer 771 | . 117 . 654 Effects 2 | . . . 2 Interference 2 | . . . 2 Siege Activations . | . . . . Martial Activations . | . . . . Shielding Activations . | . . . . Robots Disrupted . | . . . . Combat Hostiles . | . . . . Robots Corrupted . | . . . . Combat Hostiles . | . . . . Parts Fried . | . . . . Impact Corruptions . | . . . . Robots Melted . | . . . . Combat Hostiles . | . . . . Parts Melted . | . . . . Heat Transferred 1065 | . . . 1065 Parts Sabotaged . | . . . . Parts Stolen . | . . . . Parts Stripped . | . . . . Power Chain Reactions . | . . . . Alert | -11 -10 -10 -9 ------- Run | Yrd Mat Min Mat Maximum Alert Level 2 | . . . 2 Low Security (%) 56 | 100 100 100 15 Level 1 28 | . . . 54 Level 2 15 | . . . 29 Level 3 . | . . . . Level 4 . | . . . . Level 5 . | . . . . High Security . | . . . . Max Security . | . . . . Peak Influence 533 | . 90 71 533 Initial 15 | . . 8 15 Average 175 | . 35 11 314 Influence Increases 1260 | . 190 81 989 Destroy 0b10 Robot/C 860 | . 160 60 640 Destroy 0b10 Robot/NC 50 | . . . 50 Destroy Leader 192 | . 30 10 152 Allied During Kill 67 | . . 11 56 Disable Machine 30 | . . . 30 Destroy Structure 1 | . . . 1 Lose Combat Pursuer 60 | . . . 60 Influence Decreases 785 | . 168 62 555 Entered New Map 40 | . . 14 26 Time Decay 565 | . 168 48 349 Lost Part 120 | . . . 120 Lost Ally 60 | . . . 60 Squads Dispatched 7 | . 1 . 6 Investigation 2 | . . . 2 Extermination . | . . . . Reinforcement 4 | . 1 . 3 Assault 1 | . . . 1 Garrison . | . . . . Intercept . | . . . . Searches Triggered . | . . . . Construction Impeded . | . . . . Haulers Reinforced . | . . . . Active Scanning Responses . | . . . . Cargo Convoy Interrupts . | . . . . Stealth | -11 -10 -10 -9 --------- Run | Yrd Mat Min Mat Distress Signals 4 | . 2 . 2 Communications Jammed . | . . . . Distress Signals . | . . . . Times Spotted 65 | . 15 3 47 Peak Tracking Total 6 | . 4 3 6 Tactical Retreats 3 | . . . 3 Traps | -11 -10 -10 -9 ------- Run | Yrd Mat Min Mat Traps Triggered 3 | . 1 . 2 Indirectly . | . . . . Trap Hack Attempts . | . . . . Triggered . | . . . . Disarmed . | . . . . Reprogrammed . | . . . . Reused . | . . . . Traps Extracted . | . . . . Installed . | . . . . Triggered . | . . . . Machines | -11 -10 -10 -9 ---------- Run | Yrd Mat Min Mat Machines Disabled 2 | . . . 2 Max in Single Turn 1 | . . . 1 Machines Repaired . | . . . . Machines Dismantled . | . . . . Machines Sabotaged . | . . . . Overloaded Fab Kills . | . . . . Hacking | -11 -10 -10 -9 --------- Run | Yrd Mat Min Mat Machines Accessed 3 | . 1 1 1 Terminals 2 | . 1 . 1 Fabricators . | . . . . Repair Stations . | . . . . Recycling Units . | . . . . Scanalyzers . | . . . . Garrison Access . | . . . . Total Hacks 7 | . 4 1 2 Successful 4 | . 1 1 2 Failed 3 | . 3 . . Catastrophic 1 | . 1 . . Database Lockouts . | . . . . Manual . | . . . . Terminals 6 | . 4 . 2 Fabricators . | . . . . Repair Stations . | . . . . Recycling Units . | . . . . Scanalyzers . | . . . . Garrison Access . | . . . . Terminal Hacks 4 | . 1 1 2 Record 1 | . 1 . . Open Door 1 | . . 1 . Alert Level 2 | . . . 2 Fabricator Hacks . | . . . . Repair Station Hacks . | . . . . Recycling Unit Hacks . | . . . . Scanalyzer . | . . . . Garrison Access Hacks . | . . . . Unauthorized Hacks . | . . . . Terminals . | . . . . Fabricators . | . . . . Repair Stations . | . . . . Recycling Units . | . . . . Scanalyzers . | . . . . Garrison Access . | . . . . Data Cores Recovered . | . . . . Used . | . . . . Hacking Detections 2 | . 1 . 1 Full Trace Events . | . . . . Feedback Events . | . . . . Feedback Blocked . | . . . . Robot Schematics Acquired . | . . . . Robots Built . | . . . . Authchips . | . . . . Time . | . . . . Total Robot Build Rating . | . . . . Part Schematics Acquired . | . . . . Parts Built . | . . . . Authchips . | . . . . Time . | . . . . Total Part Build Rating . | . . . . Parts Repaired . | . . . . Time . | . . . . Parts Recycled . | . . . . Recycled Matter . | . . . . Retrieved Matter . | . . . . Retrieved Components . | . . . . Parts Scanalyzed . | . . . . Part Schematics Acquired . | . . . . Parts Damaged . | . . . . Bothacking | -11 -10 -10 -9 ------------ Run | Yrd Mat Min Mat Used RIF Installer . | . . . . Robots Hacked . | . . . . Non-combat . | . . . . Combat . | . . . . Robot Hacks Applied . | . . . . Relay Couplers Released . | . . . . Fabnet Peak Effective % . | . . . . Robots Rewired . | . . . . Allies Hacked . | . . . . Hacks Repelled . | . . . . Allies | -11 -10 -10 -9 -------- Run | Yrd Mat Min Mat Total Allies 3 | . . 3 . Largest Group 3 | . . 3 3 Highest-Rated Group 40 | . . 40 40 Highest-Rated Ally 16 | . . 16 16 Total Orders 4 | . . 2 2 STAY 1 | . . 1 . EXPLORE 1 | . . . 1 RETURN 2 | . . 1 1 Ally Attacks 63 | . . 7 56 Total Damage 749 | . . 79 670 Kills 20 | . . 2 18 Allies Corrupted . | . . . . Allies Melted . | . . . . Intel | -11 -10 -10 -9 ------- Run | Yrd Mat Min Mat Active Infowar (turns) . | . . . . Robot Analysis Total . | . . . . Derelict Logs Recovered 1 | . . 1 . Drone Launches 26 | . . 2 24 Drone Recoveries 23 | . . 2 21 Exploration | -11 -10 -10 -9 ------------- Run | Yrd Mat Min Mat Turns Passed 1657 | 48 401 342 866 Spaces Moved 796 | 39 178 195 384 Core 30 | 21 . . 9 Treads 514 | 18 178 195 123 Legs . | . . . . Wheels . | . . . . Hover 252 | . . . 252 Flight . | . . . . Fastest Speed 50 | 50 160 160 106 Average Speed 149 | 100 160 160 143 Slowest Speed 400 | 160 160 160 400 Overloaded Moves . | . . . . Propulsion Burnouts . | . . . . Robots Hopped . | . . . . Potential Cave-ins . | . . . . Cave-ins Triggered . | . . . . Exploration Rate (%) 34 | 3 41 54 38 Regions Visited 3 Branch Regions 1 Pre-discovered Areas . | . . . . Known Exits Taken . | . . . . Unknown Exits Taken 3 | 1 1 1 . Scrap Searched . | . . . . Spaces Dug . | . . . . Terrain Destroyed . | . . . . Melee . | . . . . Projectile . | . . . . AOE . | . . . . Terrain Rammed . | . . . . Walls Destroyed . | . . . . Machines Disabled . | . . . . Actions | -11 -10 -10 -9 --------- Run | Yrd Mat Min Mat Total 1063 | 48 230 224 561 Wait 108 | . 10 27 71 Move 793 | 38 177 194 384 Hop . | . . . . Pick Up 13 | 5 3 1 4 Fast Attach 5 | . . . 5 Attach 11 | 5 . 1 5 Detach . | . . . . Swap 4 | . . . 4 Drop 2 | . . . 2 Fire 127 | . 40 1 86 Melee . | . . . . Ram . | . . . . Kick . | . . . . Crush . | . . . . Escape Stasis . | . . . . Rewire . | . . . . Trap . | . . . . Miscellaneous . | . . . . Route ------- -11/Scrapyard -10/Materials (discovered 2 exits: *Mat / *Min) -10/Mines -9/Materials (discovered 1 exit: [*Mat]) History --------- Turn | Location | Event 7 | -11/Scrapyard | Discovered new exit (range 16) 49 | -11/Scrapyard | Entered Materials 292 | -10/Materials | Discovered new exit (range 9) 316 | -10/Materials | Build established: Mutant 432 | -10/Materials | Discovered new exit (range 12) 450 | -10/Materials | Entered Mines 559 | -10/Mines | Learned Materials emergency access door positions 586 | -10/Mines | Found the Drone Emporium 601 | -10/Mines | Found Prototype Device 602 | -10/Mines | Identified Sensor Drone Bay 653 | -10/Mines | Assisted by bots powering up and referring to "LRC-V3" 759 | -10/Mines | Discovered new exit (range 15) 792 | -10/Mines | Entered Materials 792 | -9/Materials | Accompanied by 3 allies 792 | -9/Materials | Evolved 2 slots: Utility x2 1332 | -9/Materials | Discovered new exit (range 16) 1571 | -9/Materials | Core integrity fell below 50% 1592 | -9/Materials | First assault squad dispatched 1610 | -9/Materials | Lost 6 parts (1p1n2u2w) 1647 | -9/Materials | Core integrity fell below 20% 1658 | -9/Materials | Destroyed by G-34 Mercenary with Small Laser Last Messages --------------- Destroyed Lgt. Ion Engine. S-10 Pest destroyed. K-01 Serf collects debris. S-10 Pest destroyed. ALERT: Unidentified disturbance in Zone 7T, assault force dispatched. Extracted 4 matter. W-16 Scout destroyed. C-30 ARC bursts open, deploying its payload. G-47 Trooper unfolds itself. G-34 Mercenary unfolds itself. I-25 Savior unfolds itself. Extracted 3 matter. Lgt. Assault Rifle destroyed. Acquired Lgt. Assault Rifle. Critical hit (Burn: +37). Adv. Beam Cannon destroyed. G-34 Mercenary destroyed. Sensor Drone released from Sensor Drone Bay. Map ----- +----------------------------------------------------+ | ??????????????????????????????????""" + | | ??????????????????????????????????????# / | | ??????????????????????????????????????###### ### | | ???????????????????????????????????######### #?## | | ???????????????????????????????????# # #### | | ???????????????????????????k???????# """ #* # | | ????????????????????????????????Y??# """ # =# | | ????????????????????????? ???????# """ #!%# | | ????????????????????????# ???????# #%!# | | ????????????????????????# ???????# +%[+ | | ??????????? ?????????# #??????# = # =# | | #?????????# ?????????# #??????# #%[# | | #?????????# ?????????# +??????#########+####+ | | #?????????#o ?????????# #?????????????# = | | #?????????# ?????????# #?????????????#% """ | | #?????????# #????????# #??a??????????# """ | | #?????????# #????????# #?????????????# """ | | #?????????# #????????#^^^+?????????????# | | #?????????# #????????# #?????????????# | | #?????????# #????????# #?????????????# | | #?????????# #????????# #?????????????# "T" | | ??????????#![ #????????#[ #?????????????# | | ??????????# % ##########=! #####+#############+## | | ??????????#% %!%=g *%!nn % % # | | ??????????# i % % =%=n= % # | | ??????????# % g * %!@ = % a # | | ########### ##### [######## %############ ## | | ==#???# #??????# #??????????# #? | | *= #???# r#??????# #??#########+#? | | """" ^ = #???# #??????# #??# ! #? | | ## """" [! = #???# #??????# #?## #? | | ?# """" #???# #??????# #?#Y #? | | ?# ##???# #??????# #?## #? | | ?#^ !^ g #????# #??????+ #??# """ #? | | ?# """ * #????# = #??????# #??# """ #? | | ?# """"= + ??#!% #??????# #??# """ #? | | """" # ??# #?????## ##?# #? | | # ???# #?????# ##########/### | | #? ??# #?????# | | #T### ##? ?? ??????# %% | | % ###?# #???#???????????# | | #???#+#???????????????# % ##########+### | | #??? ???????????????#######????????????? | | ???? ??????????????????????????????????? | | ???? ?????????????????????????????????? | | ???? ?????????????????????????????????? | | ######+??????? ????????????????????????????????? | | ?????????????????????????????????????????????????? | | ?????????????????????????????????????????????????? | | ?????????????????????????????????????????????????? | +----------------------------------------------------+ Best States ------------- Heat Dissipation 28 Energy Generation 10 Energy Capacity 250 Matter Stores 750 Matter Capacity 750 Sight Range 16 Terrain Scan Density 10 Evasion (%) 50 Recoil Reduction 2 Item Schematics ----------------- None Robot Schematics ------------------ None Fabricated ------------ Nothing Repaired ---------- Nothing Alien Tech Used ----------------- None Achievements -------------- None Challenges ------------ None Game ------ Seed TimingCompanionShifter Manual? 0 Play Time 00:15:43 Cumulative 75.4 hours Start 2025.08.01 @ 09:13:32 End 2025.08.01 @ 09:58:59 Sessions 2 Manual Loads 0 Difficulty Rogue Special Mode None Game No. 303 Rogue 303 Adventurer 0 Explorer 0 Win Type - Total 0 Types 0/0/0/0/0/0/0/0/0/0 Lore% 25 Gallery% 33 Achievement% 28 Wizard Run 0 Options --------- Layout 2 ASCII 0 Keyboard 0 Movement Mouse Keybinds 0 Fullscreen 2 Font 24/Smallcaps Map View 50x44 Zoom Use 0% Tactical HUD 0 Map Filters NONE Filters NONE Steam 1 RUN: f1a14217-29c7-4520-be7a-efa0f6ecf5bc